fUSD/lending_fUSD_20251213
["ID","MTS","AMOUNT","RATE_DAILY","PERIOD"]
[398412571,1765620641199,-300.0,0.00016438,2]
[398412572,1765620641209,-500.0,0.00016438,2]
[398412573,1765620641219,-1693.0,0.00016438,2]
[398412574,1765620641229,-500.0,0.00016438,2]
[398412575,1765620641239,-150.0,0.00016438,2]
[398412576,1765620641249,-402.55406266,0.00016438,2]
[398412577,1765620641258,-150.0,0.00016438,2]
[398412578,1765620641268,-663.01,0.00016438,2]
[398412579,1765620641278,-500.0,0.00016438,2]
[398412580,1765620641288,-500.0,0.00016438,2]
[398412581,1765620641298,-500.0,0.00016438,2]
[398412582,1765620641309,-500.0,0.00016438,2]
[398412583,1765620641319,-500.0,0.00016438,2]
[398412584,1765620641330,-500.0,0.00016438,2]
[398412585,1765620641340,-500.0,0.00016438,2]
[398412586,1765620641349,-500.0,0.00016438,2]
[398412587,1765620641358,-500.0,0.00016438,2]
[398412588,1765620641367,-500.0,0.00016438,2]
[398412589,1765620641377,-500.0,0.00016438,2]
[398412590,1765620641386,-500.0,0.00016438,2]
[398412591,1765620641396,-316.8007508,0.00016438,2]
[398412592,1765620641405,-500.0,0.00016438,2]
[398412593,1765620641415,-500.0,0.00016438,2]
[398412594,1765620641424,-500.0,0.00016438,2]
[398412595,1765620641433,-500.0,0.00016438,2]
[398412596,1765620641443,-500.0,0.00016438,2]
[398412597,1765620641454,-500.0,0.00016438,2]
[398412598,1765620641464,-500.0,0.00016438,2]
[398412599,1765620641473,-500.0,0.00016438,2]
[398412600,1765620641482,-500.0,0.00016438,2]
[398412601,1765620641492,-500.0,0.00016438,2]
[398412602,1765620641502,-500.0,0.00016438,2]
[398412603,1765620641516,-500.0,0.00016438,2]
[398412604,1765620641525,-500.0,0.00016438,2]
[398412605,1765620641535,-500.0,0.00016438,2]
[398412606,1765620641544,-500.0,0.00016438,2]
[398412607,1765620641556,-500.0,0.00016438,2]
[398412608,1765620641565,-500.0,0.00016438,2]
[398412609,1765620641575,-500.0,0.00016438,2]
[398412610,1765620641586,-500.0,0.00016438,2]
[398412611,1765620641596,-500.0,0.00016438,2]
[398412612,1765620641606,-500.0,0.00016438,2]
[398412613,1765620641615,-500.0,0.00016438,2]
[398412614,1765620641625,-500.0,0.00016438,2]
[398412615,1765620641635,-500.0,0.00016438,2]
[398412616,1765620641645,-500.0,0.00016438,2]
[398412617,1765620641654,-500.0,0.00016438,2]
[398412618,1765620641663,-500.0,0.00016438,2]
[398412619,1765620641673,-500.0,0.00016438,2]
[398412620,1765620641683,-500.0,0.00016438,2]
[398412621,1765620641692,-500.0,0.00016438,2]
[398412622,1765620641702,-500.0,0.00016438,2]
[398412623,1765620641712,-6332.56915782,0.0001648,2]
[398412624,1765620641722,-160.85,0.00016537,2]
[398412625,1765620641733,-510.0,0.00016562,2]
[398412626,1765620641743,-500.0,0.00016575,2]
[398412627,1765620641754,-500.0,0.00016575,2]
[398412628,1765620641764,-1693.0,0.00016575,2]
[398412629,1765620641774,-500.0,0.00016575,2]
[398412630,1765620641784,-250.0,0.00016575,2]
[398412631,1765620641793,-150.0,0.00016575,2]
[398412632,1765620641803,-166.66,0.00016671,2]
[398412633,1765620641812,-500.0,0.00016712,2]
[398412634,1765620641822,-500.0,0.00016712,2]
[398412635,1765620641832,-1693.0,0.00016712,2]
[398412636,1765620641841,-500.0,0.00016712,2]
[398412637,1765620641852,-200.0,0.00016712,2]
[398412638,1765620641864,-663.01,0.00016712,2]
[398412639,1765620641873,-168.44,0.00016712,2]
[398412640,1765620641884,-6332.56915782,0.00016764,2]
[398412641,1765620641894,-150.0,0.00016795,2]
[398412642,1765620641903,-198.57165543,0.00016795,2]
[398412643,1765620641913,-218.26628836,0.00016795,2]
[398412644,1765620641923,-165.51213001,0.00016795,2]
[398412645,1765620641932,-1098.0,0.00016819,2]
[398412646,1765620641942,-500.0,0.00016849,2]
[398412647,1765620641951,-500.0,0.00016849,2]
[398412648,1765620641960,-1693.0,0.00016849,2]
[398412649,1765620641969,-500.0,0.00016849,2]
[398412650,1765620641979,-1680.0,0.00016885,2]
[398412651,1765620641989,-420.0,0.00016885,2]
[398412652,1765620641998,-500.0,0.00016934,2]
[398412653,1765620642007,-500.0,0.00016934,2]
[398412654,1765620642016,-459.89274731,0.00016956,2]
[398412655,1765620642026,-1680.0,0.00016971,2]
[398412656,1765620642035,-500.0,0.00016973,2]
[398412657,1765620642044,-500.0,0.00016973,2]
[398412658,1765620642053,-500.0,0.00016973,2]
[398412659,1765620642062,-500.0,0.00016973,2]
[398412660,1765620642072,-500.0,0.00016973,2]
[398412661,1765620642081,-282.11143422,0.00016973,2]
[398412662,1765620642091,-500.0,0.00016973,2]
[398412663,1765620642100,-504.48723709,0.00016973,2]
[398412664,1765620642109,-194.66731831,0.00016974,2]
[398412665,1765620642118,-300.0,0.00016974,2]
[398412666,1765620642127,-300.0,0.00016974,2]
[398412667,1765620642137,-300.0,0.00016974,2]
[398412668,1765620642146,-300.0,0.00016974,2]
[398412669,1765620642156,-195.0,0.00016974,2]
[398412670,1765620642165,-250.0,0.00016974,2]
[398412671,1765620642174,-195.0,0.00016979,2]
[398412672,1765620642186,-300.0,0.00016979,2]
[398412673,1765620642196,-195.0,0.00016979,2]
[398412674,1765620642206,-300.0,0.00016979,2]
[398412675,1765620642217,-250.0,0.00016979,2]
[398412676,1765620642227,-500.0,0.00016986,2]
[398412677,1765620642237,-500.0,0.00016986,2]
[398412678,1765620642247,-1693.0,0.00016986,2]
[398412679,1765620642258,-500.0,0.00016986,2]
[398412680,1765620642268,-626.85,0.00016986,2]
[398412681,1765620642278,-663.01,0.00016986,2]
[398412682,1765620642289,-250.0,0.00017,2]
[398412683,1765620642299,-238.0,0.00017032,2]
[398412684,1765620642309,-3647.0,0.00017047,2]
[398412685,1765620642319,-6332.56915782,0.00017048,2]
[398412686,1765620642330,-507.0,0.00017093,2]
[398412687,1765620642339,-300.0,0.00017099,2]
[398412688,1765620642349,-200.0,0.00017099,2]
[398412689,1765620642360,-207.4,0.00017099,2]
[398412690,1765620642372,-215.0738,0.00017099,2]
[398412691,1765620642381,-223.0315306,0.00017099,2]
[398412692,1765620642391,-231.28369723,0.00017099,2]
[398412693,1765620642400,-239.84119403,0.00017099,2]
[398412694,1765620642409,-201.89262005,0.00017099,2]
[398412695,1765620642418,-500.0,0.00017099,2]
[398412696,1765620642427,-1000.0,0.00017099,2]
[398412697,1765620642437,-1000.0,0.00017099,2]
[398412698,1765620642446,-499.0,0.00017099,2]
[398412699,1765620642456,-1000.0,0.00017099,2]
[398412700,1765620642465,-591.82939962,0.00017099,2]
[398412701,1765620642475,-1000.0,0.00017099,2]
[398412702,1765620642484,-1000.0,0.00017099,2]
[398412703,1765620642493,-1000.0,0.00017099,2]
[398412704,1765620642503,-154.47071227,0.00017099,2]
[398412705,1765620642517,-1000.0,0.00017099,2]
[398412706,1765620642527,-1000.0,0.00017099,2]
[398412707,1765620642536,-500.0,0.00017099,2]
[398412708,1765620642546,-423.83931656,0.00017099,2]
[398412709,1765620642556,-151.0,0.00017099,2]
[398412710,1765620642566,-574.12855637,0.00017099,2]
[398412711,1765620642575,-586.32013966,0.00017099,2]
[398412712,1765620642585,-507.0,0.00017108,2]
[398412713,1765620642595,-500.0,0.00017123,2]
[398412714,1765620642604,-500.0,0.00017123,2]
[398412715,1765620642614,-1693.0,0.00017123,2]
[398412716,1765620642624,-331.61392116,0.00017123,2]
[398412717,1765620642634,-642.0,0.00017139,2]
[398412718,1765620642643,-1261.0,0.00017139,2]
[398412719,1765620642653,-6520.0,0.00017139,2]
[398412720,1765620642662,-2426.0,0.00017139,2]
[398412721,1765620642671,-237.064,0.00017139,2]
[398412722,1765620642681,-499.0,0.00017154,2]
[398412723,1765620642690,-507.0,0.00017166,2]
[398412724,1765620642699,-507.0,0.00017207,2]
[398412725,1765620642709,-499.0,0.00017209,2]
[398412726,1765620642719,-507.0,0.00017219,2]
[398412727,1765620642728,-364.42072064,0.0001726,2]
[398412728,1765620642738,-420.42990245,0.0001726,2]
[398412730,1765620642747,-1693.0,0.0001726,2]
[398412732,1765620642756,-626.85,0.0001726,2]
[398412733,1765620642766,-663.01,0.0001726,2]
[398412734,1765620642775,-499.0,0.00017264,2]
[398412735,1765620642785,-1000.0,0.000173,2]
[398412736,1765620642800,-507.0,0.00017303,2]
[398412737,1765620642809,-499.0,0.00017319,2]
[398412738,1765620642819,-6332.56915782,0.00017332,2]
[398412740,1765620642828,-452.1330398,0.00017354,2]
[398412741,1765620642837,-150.0,0.00017366,2]
[398412742,1765620642847,-268.22068745,0.00017366,2]
[398412743,1765620642856,-155.20312827,0.00017366,2]
[398412744,1765620642865,-150.0,0.00017366,2]
[398412745,1765620642874,-499.0,0.00017374,2]
[398412746,1765620642883,-507.0,0.00017379,2]
[398412747,1765620642893,-162.11,0.0001739,2]
[398412748,1765620642902,-150.881,0.00017395,2]
[398412749,1765620642912,-251.105,0.00017395,2]
[398412750,1765620642921,-1324.0,0.00017395,2]
[398412751,1765620642930,-1693.0,0.00017397,2]
[398412752,1765620642939,-13176.0321615,0.00017407,2]
[398412753,1765620642948,-500.0,0.00017415,2]
[398412754,1765620642957,-75079.1150972,0.00017416,2]
[398412755,1765620642967,-499.0,0.00017429,2]
[398412756,1765620642976,-507.0,0.00017431,2]
[398412757,1765620642985,-507.0,0.00017443,2]
[398412759,1765620642995,-700.0,0.00017452,7]
[398412760,1765620643004,-507.0,0.00017467,2]
[398412761,1765620643013,-507.0,0.00017469,2]
[398412762,1765620643023,-3503.99116623,0.0001747,2]
[398412763,1765620643032,-499.0,0.00017484,2]
[398412764,1765620643041,-150.0,0.00017503,2]
[398412765,1765620643050,-200.88620983,0.00017503,2]
[398412766,1765620643059,-168.0,0.00017513,2]
[398412767,1765620643070,-1000.0,0.00017521,2]
[398412768,1765620643079,-1000.0,0.00017521,2]
[398412769,1765620643089,-1106.00059495,0.00017521,2]
[398412770,1765620643099,-1000.0,0.00017521,2]
[398412771,1765620643109,-1000.0,0.00017521,2]
[398412772,1765620643118,-1693.0,0.00017534,2]
[398412773,1765620643127,-626.85,0.00017534,2]
[398412774,1765620643137,-663.01,0.00017534,2]
[398412775,1765620643146,-1600.0,0.00017552,2]
[398412776,1765620643155,-168.0,0.00017584,2]
[398412777,1765620643164,-1010.0,0.000176,2]
[398412778,1765620643173,-6332.56915782,0.00017616,2]
[398412779,1765620643183,-947.007,0.0001763,2]
[398412780,1765620643192,-168.0,0.00017638,2]
[398412781,1765620643201,-150.0,0.0001764,2]
[398412782,1765620643211,-1132.05688319,0.0001764,2]
[398412783,1765620643220,-1015.4872915,0.0001764,2]
[398412784,1765620643229,-1099.08787767,0.0001764,2]
[398412785,1765620643239,-1136.68543186,0.0001764,2]
[398412786,1765620643248,-1142.49997388,0.0001764,2]
[398412787,1765620643258,-1116.38834886,0.0001764,2]
[398412788,1765620643268,-1126.07563116,0.0001764,2]
[398412789,1765620643278,-1011.00953153,0.0001764,2]
[398412790,1765620643288,-1020.55258817,0.0001764,2]
[398412791,1765620643298,-1098.47512091,0.0001764,2]
[398412792,1765620643308,-1087.60554196,0.0001764,2]
[398412793,1765620643318,-1058.47794475,0.0001764,2]
[398412794,1765620643328,-1131.91632886,0.0001764,2]
[398412795,1765620643339,-1065.52780114,0.0001764,2]
[398412796,1765620643349,-1106.15462871,0.0001764,2]
[398412797,1765620643358,-1139.69938186,0.0001764,2]
[398412798,1765620643368,-1006.49608273,0.0001764,2]
[398412799,1765620643379,-1089.7639318,0.0001764,2]
[398412800,1765620643388,-1008.84152869,0.0001764,2]
[398412801,1765620643398,-1300.19067908,0.0001764,2]
[398412803,1765620643408,-3233.19850472,0.0001764,2]
[398412805,1765620643417,-553.64373807,0.00017647,2]
[398412807,1765620643427,-168.0,0.00017668,2]
[398412809,1765620643436,-1693.0,0.00017671,2]
[398412811,1765620643445,-223.28073538,0.00017698,2]
[398412813,1765620643454,-1098.0,0.00017704,2]
[398412815,1765620643464,-150.0,0.00017726,2]
[398412817,1765620643473,-1000.0,0.00017726,7]
[398412819,1765620643482,-500.0,0.00017726,7]
[398412821,1765620643491,-300.0,0.00017761,2]
[398412823,1765620643501,-290.0,0.00017766,2]
[398412825,1765620643514,-213.15981732,0.00017777,2]
[398412826,1765620643523,-1038.88883587,0.00017795,2]
[398412827,1765620643532,-1000.0,0.000178,2]
[398412829,1765620643542,-1693.0,0.00017808,2]
[398412831,1765620643551,-626.85,0.00017808,2]
[398412832,1765620643560,-663.01,0.00017808,2]
[398412833,1765620643570,-1168.10261834,0.00017829,5]
[398412834,1765620643580,-220.76406029,0.00017829,5]
[398412835,1765620643589,-4646.39356286,0.0001783,2]
[398412836,1765620643599,-104947.77081142,0.0001783,2]
[398412837,1765620643608,-5178.85779161,0.0001783,2]
[398412838,1765620643619,-267.29421302,0.0001783,2]
[398412839,1765620643628,-6346.75039435,0.0001783,2]
[398412840,1765620643637,-4522.70192007,0.0001783,2]
[398412841,1765620643647,-2939.9701663,0.00017846,2]
[398412842,1765620643656,-500.0,0.00017855,2]
[398412843,1765620643665,-16752.4149754,0.00017856,2]
[398412844,1765620643675,-150.0,0.00017863,2]
[398412845,1765620643683,-168.0,0.00017865,2]
[398412846,1765620643692,-1592.1424,0.000179,2]
[398412847,1765620643702,-1000.0,0.000179,2]
[398412848,1765620643711,-6332.56915782,0.000179,2]
[398412849,1765620643721,-743.9589902,0.000179,2]
[398412850,1765620643731,-300.0,0.00017909,2]
[398412851,1765620643741,-1693.0,0.00017945,2]
[398412852,1765620643750,-3147.2464871,0.00017963,2]
[398412853,1765620643759,-500.0,0.00017973,2]
[398412854,1765620643768,-330.25327919,0.00017973,2]
[398412855,1765620643778,-500.0,0.00017973,2]
[398412856,1765620643789,-500.0,0.00017973,2]
[398412857,1765620643800,-500.0,0.00017973,2]
[398412858,1765620643812,-500.0,0.00017973,2]
[398412859,1765620644111,-500.0,0.00017973,2]
[398412860,1765620644121,-500.0,0.00017973,2]
[398412861,1765620644131,-567.32208643,0.00017973,2]
[398412862,1765620644140,-500.0,0.00017973,2]
[398412863,1765620644150,-500.0,0.00017973,2]
[398412864,1765620644161,-500.0,0.00017973,2]
[398412865,1765620644170,-500.0,0.00017973,2]
[398412866,1765620644180,-500.0,0.00017973,2]
[398412867,1765620644189,-500.0,0.00017973,2]
[398412868,1765620644199,-500.0,0.00017973,2]
[398412869,1765620644209,-566.62084446,0.00017973,2]
[398412870,1765620644218,-500.0,0.00017973,2]
[398412871,1765620644228,-500.0,0.00017973,2]
[398412872,1765620644239,-500.0,0.00017973,2]
[398412873,1765620644249,-500.0,0.00017973,2]
[398412874,1765620644258,-500.0,0.00017973,2]
[398412875,1765620644268,-500.0,0.00017973,2]
[398412876,1765620644278,-165.28083173,0.00017973,2]
[398412877,1765620644287,-500.0,0.00017973,2]
[398412878,1765620644297,-500.0,0.00017973,2]
[398412879,1765620644307,-500.0,0.00017973,2]
[398412880,1765620644316,-500.0,0.00017973,2]
[398412881,1765620644326,-500.0,0.00017973,2]
[398412882,1765620644335,-500.0,0.00017973,2]
[398412883,1765620644344,-500.0,0.00017973,2]
[398412884,1765620644353,-500.0,0.00017973,2]
[398412885,1765620644363,-500.0,0.00017973,2]
[398412886,1765620644372,-500.0,0.00017973,2]
[398412887,1765620644382,-500.0,0.00017996,2]
[398412888,1765620644391,-500.0,0.00017996,2]
[398412889,1765620644401,-500.0,0.00017998,2]
[398412890,1765620644410,-500.0,0.00017998,2]
[398412891,1765620644419,-500.0,0.00017999,2]
[398412892,1765620644429,-500.0,0.00017999,2]
[398412893,1765620644439,-500.0,0.00017999,2]
[398412894,1765620644449,-500.0,0.00017999,2]
[398412895,1765620644458,-500.0,0.00017999,2]
[398412896,1765620644468,-11401.41065993,0.00017999,2]
[398412897,1765620644477,-500.0,0.00017999,2]
[398412898,1765620644486,-500.0,0.00017999,2]
[398412899,1765620644496,-500.0,0.00017999,2]
[398412900,1765620644505,-500.0,0.00017999,2]
[398412901,1765620644518,-500.0,0.00017999,2]
[398412902,1765620644528,-500.0,0.00017999,2]
[398412903,1765620644537,-500.0,0.00017999,2]
[398412904,1765620644547,-289.4,0.00017999,2]
[398412905,1765620644558,-150.0,0.00017999,2]
[398412906,1765620644567,-200.0,0.00018,2]
[398412907,1765620644577,-16345.40108887,0.00018,2]
[398412908,1765620644587,-1402616.60062285,0.00018,2]
[398412909,1765620644596,-1184.67074841,0.00018,2]
[398412910,1765620644606,-160.30327095,0.00018,2]
[398412911,1765620644616,-215993.23241923,0.00018,2]
[398412912,1765620644625,-1066474.49383999,0.00018,2]
[398412913,1765620644635,-313430.48371507,0.00018,2]
[398412914,1765620645570,-10250.8,0.00018,2]
[398412915,1765620645581,-500.3348243,0.00018,2]
[398412916,1765620645594,-30000.0,0.00018,2]
[398412917,1765620645605,-2038.3362421,0.00018,2]
[398412918,1765620645625,-1759.8369796,0.00018,2]
[398412919,1765620645636,-3828.86735665,0.00018,2]
[398412920,1765620645647,-5678.50813704,0.00018,2]
[398412921,1765620645659,-644.20590704,0.00018,2]
[398412923,1765620647403,-1375.598704,0.00018,2]
[398412924,1765620647723,-507.0,0.00017683,2]
[398412925,1765620647734,-9116.84486973,0.00018,2]
[398412926,1765620647751,-17908.00896982,0.00018,2]
[398412927,1765620647787,-3524.0,0.00018,2]
[398412928,1765620648220,-187.0,0.00015901,2]
[398412929,1765620648231,-1941.79801935,0.00018,2]
[398412930,1765620648243,-1203.12010318,0.00018,2]
[398412931,1765620648259,-459.58986104,0.00018,2]
[398412932,1765620648285,-2169.16492796,0.00018,2]
[398412933,1765620648297,-470.22347517,0.00018,2]
[398412934,1765620648415,1000.0,0.00015344,2]
[398412935,1765620711689,-198.47487941,0.00015442,2]
[398412936,1765620711714,-156.1088056,0.00015442,2]
[398412937,1765620711735,-179.35656801,0.00015442,2]
[398412938,1765620711759,-183.55758337,0.00015443,2]
[398412939,1765620743263,-500.0,0.00015442,2]
[398412940,1765620743285,-141.52665826,0.00015442,2]
[398412941,1765620747120,-243.11392843,0.00015442,2]
[398412942,1765620753802,531.6672,0.00015344,2]
[398412943,1765620779431,692453.0530224,0.00015344,2]
[398412944,1765620779465,67546.9469776,0.00015344,2]
[398412945,1765621014014,-500.0,0.00015443,2]
[398412946,1765621014040,-500.0,0.00015443,2]
[398412947,1765621014066,-500.0,0.00015443,2]
[398412948,1765621014090,-500.0,0.00015443,2]
[398412949,1765621014112,-500.0,0.00015443,2]
[398412950,1765621014134,-500.0,0.00015443,2]
[398412951,1765621014156,-200.50561279,0.00015648,2]
[398412952,1765621014178,-200.0,0.00015853,2]
[398412953,1765621322424,500.0,0.00015853,2]
[398412954,1765621373316,300.0,0.000202,30]
[398412974,1765621827234,4448.36542154,0.00021,30]
[398412983,1765621832097,-229.33148918,0.000159,2]
[398412985,1765621832107,-195.0,0.0001595,2]
[398412987,1765621832116,-300.0,0.00015999,2]
[398412989,1765621832126,-300.0,0.00015999,2]
[398412990,1765621832136,-1200.0,0.00015999,2]
[398412991,1765621832146,-300.0,0.00015999,2]
[398412992,1765621832155,-300.0,0.00016,2]
[398412993,1765621832165,-195.0,0.00016,2]
[398412994,1765621832175,-250.0,0.00016,2]
[398412995,1765621832184,-2830.66851072,0.00016,2]
[398412996,1765621832196,-4031.53528395,0.00016,2]
[398412997,1765621832206,-1848.46471605,0.00016,4]
[398412998,1765621832219,-1300.0,0.00016,4]
[398412999,1765621832255,-291.14807824,0.00015999,2]
[398413000,1765621832268,-990.02398659,0.00016,4]
[398413001,1765621832280,-1475.92612987,0.00016,4]
[398413005,1765621832398,-421.98808215,0.00015999,2]
[398413015,1765621832695,-78.01191785,0.00015999,2]
[398413016,1765621832705,-237.23472011,0.00015999,2]
[398413017,1765621832714,-307.3100889,0.00015999,2]
[398413018,1765621832726,-125.28163185,0.00015999,2]
[398413019,1765621832735,-8616.95060278,0.00016,4]
[398413020,1765621840192,-500.0,0.00015999,2]
[398413021,1765621840202,-195.38320398,0.00015999,2]
[398413022,1765621840212,-500.0,0.00015999,2]
[398413023,1765621840221,-500.0,0.00015999,2]
[398413024,1765621840231,-500.0,0.00015999,2]
[398413025,1765621840241,-500.0,0.00015999,2]
[398413026,1765621840251,-500.0,0.00015999,2]
[398413027,1765621840260,-500.0,0.00015999,2]
[398413028,1765621840275,-264.1886854,0.00015999,2]
[398413029,1765621840285,-500.0,0.00015999,2]
[398413030,1765621840295,-500.0,0.00015999,2]
[398413031,1765621840304,-500.0,0.00015999,2]
[398413032,1765621840315,-500.0,0.00015999,2]
[398413033,1765621840324,-500.0,0.00015999,2]
[398413034,1765621840334,-500.0,0.00015999,2]
[398413035,1765621840346,-500.0,0.00015999,2]
[398413036,1765621840357,-500.0,0.00015999,2]
[398413037,1765621840367,-500.0,0.00015999,2]
[398413038,1765621840376,-500.0,0.00015999,2]
[398413039,1765621840385,-500.0,0.00015999,2]
[398413040,1765621840395,-500.0,0.00015999,2]
[398413041,1765621840404,-500.0,0.00015999,2]
[398413042,1765621840414,-500.0,0.00015999,2]
[398413043,1765621840423,-529.22221399,0.00015999,2]
[398413044,1765621840432,-516.96408023,0.00015999,2]
[398413045,1765621840443,-500.0,0.00015999,2]
[398413046,1765621840452,-500.0,0.00015999,2]
[398413047,1765621840462,-500.0,0.00015999,2]
[398413048,1765621840471,-500.0,0.00015999,2]
[398413049,1765621840480,-500.0,0.00015999,2]
[398413050,1765621840489,-500.0,0.00015999,2]
[398413051,1765621840499,-283232.46381059,0.00016,4]
[398413052,1765621840508,-166.0,0.00016081,2]
[398413053,1765621840518,-150.23,0.00016082,2]
[398413054,1765621840529,-150.59,0.00016082,2]
[398413055,1765621840538,-152.21,0.00016082,2]
[398413056,1765621840552,-151.32,0.00016082,2]
[398413057,1765621840562,-150.89,0.00016082,2]
[398413058,1765621840571,-152.38,0.00016082,2]
[398413059,1765621840581,-15118.8,0.00016117,2]
[398413060,1765621840591,-5806.08641995,0.000162,5]
[398413061,1765621840600,-500.0,0.00016438,2]
[398413062,1765621840610,-500.0,0.00016438,2]
[398413063,1765621840620,-500.0,0.00016438,2]
[398413064,1765621840630,-500.0,0.00016438,2]
[398413065,1765621840639,-500.0,0.00016438,2]
[398413066,1765621840649,-500.0,0.00016438,2]
[398413067,1765621840659,-500.0,0.00016438,2]
[398413068,1765621840669,-500.0,0.00016438,2]
[398413069,1765621840679,-500.0,0.00016438,2]
[398413070,1765621840690,-500.0,0.00016438,2]
[398413071,1765621840700,-500.0,0.00016438,2]
[398413072,1765621840710,-500.0,0.00016438,2]
[398413073,1765621840721,-500.0,0.00016438,2]
[398413074,1765621840731,-500.0,0.00016438,2]
[398413075,1765621840742,-500.0,0.00016438,2]
[398413076,1765621840751,-500.0,0.00016438,2]
[398413077,1765621840761,-399.78336167,0.00016438,2]
[398413078,1765621840771,-500.0,0.00016438,2]
[398413079,1765621840782,-500.0,0.00016438,2]
[398413080,1765621840793,-500.0,0.00016438,2]
[398413081,1765621840803,-500.0,0.00016438,2]
[398413082,1765621840813,-7548.53,0.00016438,2]
[398413083,1765621840823,-3752.92,0.0001651,2]
[398413084,1765621840833,-500.0,0.00016529,2]
[398413085,1765621840843,-532.28,0.00016698,2]
[398413086,1765621840853,-211.0,0.00016812,2]
[398413087,1765621840862,-273.0,0.00016845,2]
[398413088,1765621840873,-306.84057565,0.00016897,2]
[398413089,1765621840883,-300.0,0.00016897,2]
[398413090,1765621840893,-247.98633008,0.00016924,2]
[398413091,1765621840902,-174.7258755,0.00016924,2]
[398413092,1765621840912,-500.0,0.00016973,2]
[398413093,1765621840922,-500.0,0.00016973,2]
[398413094,1765621840931,-500.0,0.00016973,2]
[398413095,1765621840941,-500.0,0.00016973,2]
[398413096,1765621840950,-500.0,0.00016973,2]
[398413097,1765621840959,-504.48723709,0.00016973,2]
[398413098,1765621840969,-549.4,0.00016986,2]
[398413099,1765621840979,-1168.10261834,0.00016999,5]
[398413100,1765621840988,-1000.0,0.00017,2]
[398413101,1765621840999,-6225018.00411207,0.00017,2]
[398413102,1765621841039,-999.0,0.00017,2]
[398413103,1765621841051,-526.03749348,0.00017,2]
[398413104,1765621841063,-562.84105587,0.00017,2]
[398413105,1765621841074,-905.76265815,0.00017,2]
[398413106,1765621841085,-815.613376,0.00017,2]
[398413107,1765621841102,-1200.97592179,0.00017,2]
[398413111,1765621843345,-282.36355332,0.0001666,2]
[398413112,1765621843481,-844.3926,0.0001666,2]
[398413131,1765621847183,-18.35875117,0.0001666,2]
[398413132,1765621847193,-1106.98457239,0.0001666,2]
[398413133,1765621847203,-1104.97057193,0.0001666,2]
[398413134,1765621847212,-1108.08053874,0.0001666,2]
[398413135,1765621847222,-8967.22731208,0.00017,2]
[398413136,1765621847233,-613.8076229,0.00017,2]
[398413137,1765621909831,-500.0,0.00015999,2]
[398413138,1765621909853,-500.0,0.00015999,2]
[398413139,1765621909915,4404.71337821,0.00021,30]
[398413143,1765621990547,66783.42230154,0.00022,120]
[398413144,1765621990599,56548.5522876,0.00022,120]
[398413145,1765622154124,-254.34,0.00016035,3]
[398413146,1765622154154,-195.0,0.0001605,2]
[398413147,1765622154185,-258.51,0.00016064,2]
[398413148,1765622154215,-195.0,0.00016219,2]
[398413149,1765622154243,-222.79597439,0.00016364,7]
[398413150,1765622154272,-500.0,0.00016438,2]
[398413151,1765622154301,-195.0,0.00016552,2]
[398413152,1765622154330,-1200.0,0.00016659,2]
[398413153,1765622154358,-550.0,0.00016659,2]
[398413154,1765622154387,-300.0,0.00016659,2]
[398413155,1765622154415,-1058.71805122,0.00016659,2]